[Event "*** Titled Tuesday Blitz"]
[Site "Chess.com"]
[Date "2020.02.04"]
[Round "4"]
[White "Lovkov_Roman"]
[Black "marcodobrikov"]
[Result "1-0"]
[WhiteElo "2715"]
[BlackElo "2514"]
[TimeControl "180+2"]
[EndTime "13:51:25 PST"]
[Termination "Lovkov_Roman won by checkmate"]

1. e4 {[%clk 0:03:01.9]} 1... c5 {[%clk 0:03:00]} 2. c3 {[%clk 0:02:57.5]} 2...
Nf6 {[%clk 0:02:59.5]} 3. e5 {[%clk 0:02:58.5]} 3... Nd5 {[%clk 0:03:00.5]} 4.
d4 {[%clk 0:03:00.4]} 4... cxd4 {[%clk 0:03:00.3]} 5. cxd4 {[%clk 0:03:02.3]}
5... Nc6 {[%clk 0:03:01]} 6. Nf3 {[%clk 0:03:02.7]} 6... d6 {[%clk 0:03:01.6]}
7. Bc4 {[%clk 0:03:01.2]} 7... Nb6 {[%clk 0:02:59.9]} 8. Bb5 {[%clk 0:02:59.7]}
8... Bd7 {[%clk 0:03:00.7]} 9. Nc3 {[%clk 0:02:58.7]} 9... a6 {[%clk 0:02:54.3]}
10. Bxc6 {[%clk 0:02:56.7]} 10... bxc6 {[%clk 0:02:37]} 11. h3 {[%clk
0:02:54.4]} 11... d5 {[%clk 0:02:31.8]} 12. O-O {[%clk 0:02:51.3]} 12... Bf5
{[%clk 0:02:32.1]} 13. Nh4 {[%clk 0:02:38.2]} 13... e6 {[%clk 0:02:25.6]} 14.
Nxf5 {[%clk 0:02:38.5]} 14... exf5 {[%clk 0:02:27.5]} 15. Na4 {[%clk 0:02:33.4]}
15... Be7 {[%clk 0:02:19]} 16. Qc2 {[%clk 0:02:21.2]} 16... Qc7 {[%clk
0:01:50.8]} 17. Bd2 {[%clk 0:01:54.2]} 17... Nxa4 {[%clk 0:01:39.8]} 18. Qxa4
{[%clk 0:01:56.1]} 18... O-O {[%clk 0:01:36.4]} 19. Rac1 {[%clk 0:01:54.1]}
19... Rfc8 {[%clk 0:01:35.5]} 20. Bb4 {[%clk 0:01:24.3]} 20... Bxb4 {[%clk
0:01:26.8]} 21. Qxb4 {[%clk 0:01:26.2]} 21... Qb8 {[%clk 0:01:26.8]} 22. Qa3
{[%clk 0:01:17.4]} 22... a5 {[%clk 0:01:18.4]} 23. Rc2 {[%clk 0:01:06.1]} 23...
Qb4 {[%clk 0:01:17.7]} 24. Qd3 {[%clk 0:01:05.5]} 24... g6 {[%clk 0:01:14.7]}
25. Rfc1 {[%clk 0:01:05.9]} 25... a4 {[%clk 0:01:03.8]} 26. h4 {[%clk
0:00:59.6]} 26... Rab8 {[%clk 0:00:52.3]} 27. h5 {[%clk 0:00:59]} 27... Rb6
{[%clk 0:00:49.5]} 28. Qe3 {[%clk 0:00:53.9]} 28... Qe7 {[%clk 0:00:45.2]} 29.
b3 {[%clk 0:00:37.6]} 29... axb3 {[%clk 0:00:38.3]} 30. axb3 {[%clk 0:00:39.5]}
30... Kg7 {[%clk 0:00:35.3]} 31. Rc5 {[%clk 0:00:35.2]} 31... Qb7 {[%clk
0:00:32.2]} 32. R1c3 {[%clk 0:00:35.4]} 32... Rb8 {[%clk 0:00:31.3]} 33. Qg5
{[%clk 0:00:32.8]} 33... Qc8 {[%clk 0:00:20.9]} 34. h6+ {[%clk 0:00:30.6]} 34...
Kg8 {[%clk 0:00:21.7]} 35. Qf6 {[%clk 0:00:31.6]} 35... Qf8 {[%clk 0:00:22.6]}
36. e6 {[%clk 0:00:17]} 36... fxe6 {[%clk 0:00:21.3]} 37. Qxe6+ {[%clk
0:00:18.3]} 37... Qf7 {[%clk 0:00:21.8]} 38. Qe5 {[%clk 0:00:16.1]} 38... Rxb3
{[%clk 0:00:20.4]} 39. Rxb3 {[%clk 0:00:16]} 39... Rxb3 {[%clk 0:00:21]} 40.
Rxc6 {[%clk 0:00:16.7]} 40... Rb1+ {[%clk 0:00:11]} 41. Kh2 {[%clk 0:00:17.5]}
41... Qf8 {[%clk 0:00:10.6]} 42. Qxd5+ {[%clk 0:00:17.9]} 42... Kh8 {[%clk
0:00:11.4]} 43. Qe5+ {[%clk 0:00:19]} 43... Kg8 {[%clk 0:00:12.1]} 44. Qe6+
{[%clk 0:00:19.7]} 44... Kh8 {[%clk 0:00:12.6]} 45. Rc8 {[%clk 0:00:20.9]} 45...
Qxc8 {[%clk 0:00:11.7]} 46. Qxc8# {[%clk 0:00:21.3]} 1-0

[Event "*** Titled Tuesday Blitz"]
[Site "Chess.com"]
[Date "2020.02.04"]
[Round "4"]
[White "obliviate12"]
[Black "olksuna"]
[Result "1-0"]
[WhiteElo "2844"]
[BlackElo "2573"]
[TimeControl "180+2"]
[EndTime "13:51:26 PST"]
[Termination "obliviate12 won by resignation"]

1. Nf3 {[%clk 0:03:01.5]} 1... d5 {[%clk 0:03:00.5]} 2. c4 {[%clk 0:03:03.4]}
2... e6 {[%clk 0:03:00.9]} 3. d4 {[%clk 0:03:03]} 3... Nf6 {[%clk 0:03:01.6]} 4.
g3 {[%clk 0:03:04.1]} 4... Bb4+ {[%clk 0:03:01.6]} 5. Bd2 {[%clk 0:03:03.8]}
5... Be7 {[%clk 0:03:02.9]} 6. Bg2 {[%clk 0:03:05]} 6... O-O {[%clk 0:03:04.3]}
7. O-O {[%clk 0:03:06.5]} 7... Nbd7 {[%clk 0:03:05.7]} 8. Qc2 {[%clk 0:03:05.1]}
8... c6 {[%clk 0:03:07]} 9. Bf4 {[%clk 0:03:06]} 9... b6 {[%clk 0:03:03.2]} 10.
cxd5 {[%clk 0:03:06.1]} 10... Nxd5 {[%clk 0:02:57.8]} 11. Nc3 {[%clk 0:03:03.8]}
11... Nxf4 {[%clk 0:02:55.2]} 12. gxf4 {[%clk 0:03:03.9]} 12... Bb7 {[%clk
0:02:56.8]} 13. Rad1 {[%clk 0:02:56.2]} 13... Qc7 {[%clk 0:02:54.7]} 14. e3
{[%clk 0:02:56.9]} 14... Rac8 {[%clk 0:02:55.7]} 15. Ne5 {[%clk 0:02:37]} 15...
Nxe5 {[%clk 0:02:49.6]} 16. dxe5 {[%clk 0:02:37.5]} 16... Rfd8 {[%clk 0:02:45]}
17. Rxd8+ {[%clk 0:02:34]} 17... Rxd8 {[%clk 0:02:43.1]} 18. Rd1 {[%clk
0:02:27.3]} 18... h6 {[%clk 0:02:34.5]} 19. Rxd8+ {[%clk 0:02:14.6]} 19... Qxd8
{[%clk 0:02:29.4]} 20. Ne2 {[%clk 0:02:15]} 20... Qd7 {[%clk 0:02:23.1]} 21. a3
{[%clk 0:02:07.1]} 21... c5 {[%clk 0:02:22.4]} 22. Nc3 {[%clk 0:02:07.9]} 22...
Bxg2 {[%clk 0:02:16.7]} 23. Kxg2 {[%clk 0:02:09.8]} 23... Qc6+ {[%clk
0:02:17.7]} 24. Qe4 {[%clk 0:02:10.8]} 24... Qxe4+ {[%clk 0:02:14.1]} 25. Nxe4
{[%clk 0:02:12.7]} 25... Kf8 {[%clk 0:02:11.6]} 26. Kf3 {[%clk 0:02:13.4]} 26...
Ke8 {[%clk 0:02:08.4]} 27. Nc3 {[%clk 0:02:14.4]} 27... Kd7 {[%clk 0:02:07]} 28.
e4 {[%clk 0:02:08.1]} 28... c4 {[%clk 0:01:48.5]} 29. f5 {[%clk 0:01:44.3]}
29... a6 {[%clk 0:01:34.2]} 30. Kg4 {[%clk 0:01:39.6]} 30... b5 {[%clk
0:01:25.9]} 31. f4 {[%clk 0:01:40.1]} 31... Kc6 {[%clk 0:00:53.8]} 32. fxe6
{[%clk 0:01:39]} 32... fxe6 {[%clk 0:00:55.7]} 33. Kh5 {[%clk 0:01:40.2]} 33...
a5 {[%clk 0:00:36]} 34. Kg6 {[%clk 0:01:39.7]} 34... b4 {[%clk 0:00:36.9]} 35.
axb4 {[%clk 0:01:41.6]} 35... axb4 {[%clk 0:00:36.3]} 36. Nd1 {[%clk 0:01:30.2]}
36... c3 {[%clk 0:00:20.1]} 37. bxc3 {[%clk 0:01:29.5]} 37... b3 {[%clk
0:00:21.5]} 38. Kxg7 {[%clk 0:01:25.6]} 38... Ba3 {[%clk 0:00:14.9]} 39. Kf7
{[%clk 0:01:21.1]} 39... b2 {[%clk 0:00:10]} 40. Nxb2 {[%clk 0:01:19.8]} 40...
Bxb2 {[%clk 0:00:11.9]} 41. Kxe6 {[%clk 0:01:19.4]} 41... Bxc3 {[%clk
0:00:13.1]} 42. f5 {[%clk 0:01:20.2]} 42... Kc7 {[%clk 0:00:12.9]} 43. f6 {[%clk
0:01:19.8]} 43... Kd8 {[%clk 0:00:14.1]} 44. f7 {[%clk 0:00:53.6]} 44... Bb4
{[%clk 0:00:14.1]} 45. Kf6 {[%clk 0:00:55.1]} 45... Bf8 {[%clk 0:00:15.1]} 46.
e6 {[%clk 0:00:54.6]} 46... h5 {[%clk 0:00:15.6]} 47. h4 {[%clk 0:00:54.9]}
47... Bh6 {[%clk 0:00:11.9]} 48. e7+ {[%clk 0:00:55.1]} 1-0

[Event "*** Titled Tuesday Blitz"]
[Site "Chess.com"]
[Date "2020.02.04"]
[Round "4"]
[White "Carnivoras"]
[Black "GMHess"]
[Result "0-1"]
[WhiteElo "2554"]
[BlackElo "2751"]
[TimeControl "180+2"]
[EndTime "13:51:26 PST"]
[Termination "GMHess won by resignation"]

1. d4 {[%clk 0:03:01.9]} 1... g6 {[%clk 0:02:59.5]} 2. Nf3 {[%clk 0:03:02.3]}
2... Bg7 {[%clk 0:03:00.6]} 3. e4 {[%clk 0:03:03.9]} 3... c6 {[%clk 0:02:59.9]}
4. Bd3 {[%clk 0:03:04.3]} 4... d6 {[%clk 0:03:01.2]} 5. O-O {[%clk 0:03:05]}
5... Nd7 {[%clk 0:02:55.1]} 6. c4 {[%clk 0:03:04]} 6... e5 {[%clk 0:02:56.5]} 7.
Bd2 {[%clk 0:02:56.4]} 7... exd4 {[%clk 0:02:54.8]} 8. Bg5 {[%clk 0:02:44.7]}
8... Qb6 {[%clk 0:02:49.3]} 9. Qc2 {[%clk 0:02:31.5]} 9... Ne5 {[%clk
0:02:45.2]} 10. Nbd2 {[%clk 0:02:29.5]} 10... h6 {[%clk 0:02:32.5]} 11. Bh4
{[%clk 0:02:18.7]} 11... Nf6 {[%clk 0:02:28.1]} 12. Bg3 {[%clk 0:01:30.9]} 12...
Nh5 {[%clk 0:02:09.2]} 13. Rab1 {[%clk 0:00:40.8]} 13... Nxg3 {[%clk 0:02:04.9]}
14. hxg3 {[%clk 0:00:42.6]} 14... O-O {[%clk 0:02:04.2]} 15. b4 {[%clk
0:00:42.8]} 15... a5 {[%clk 0:01:29.6]} 16. c5 {[%clk 0:00:37.8]} 16... Qd8
{[%clk 0:01:27]} 17. cxd6 {[%clk 0:00:28]} 17... axb4 {[%clk 0:01:23.5]} 18.
Nxe5 {[%clk 0:00:23.3]} 18... Bxe5 {[%clk 0:01:24.2]} 19. Nc4 {[%clk 0:00:23.7]}
19... Bxd6 {[%clk 0:01:25.2]} 20. e5 {[%clk 0:00:24.5]} 20... Bc7 {[%clk
0:00:44.9]} 21. Bxg6 {[%clk 0:00:24.4]} 21... Be6 {[%clk 0:00:39.4]} 22. Bf5
{[%clk 0:00:13.6]} 22... Qd7 {[%clk 0:00:24.4]} 23. Bxe6 {[%clk 0:00:09.5]}
23... Qxe6 {[%clk 0:00:26.3]} 24. Rxb4 {[%clk 0:00:10.5]} 24... b5 {[%clk
0:00:26.6]} 25. Nd2 {[%clk 0:00:10.5]} 25... Rxa2 {[%clk 0:00:23.4]} 26. Qd3
{[%clk 0:00:09.3]} 26... Ba5 {[%clk 0:00:19.8]} 27. Qxd4 {[%clk 0:00:05.8]}
27... Rxd2 {[%clk 0:00:11.6]} 28. Qxd2 {[%clk 0:00:05.7]} 28... Bxb4 {[%clk
0:00:11.2]} 29. Qxb4 {[%clk 0:00:06]} 29... Qxe5 {[%clk 0:00:11.9]} 30. Rc1
{[%clk 0:00:06.8]} 30... Qe6 {[%clk 0:00:09.2]} 31. Rc5 {[%clk 0:00:05.2]} 31...
Rd8 {[%clk 0:00:07.6]} 32. Qc3 {[%clk 0:00:03.9]} 32... Rd6 {[%clk 0:00:06.3]}
33. Kh2 {[%clk 0:00:04.7]} 33... Qf6 {[%clk 0:00:04.2]} 34. Qe3 {[%clk
0:00:04.3]} 34... Re6 {[%clk 0:00:04.9]} 35. Qd3 {[%clk 0:00:04.1]} 35... Qxf2
{[%clk 0:00:03.6]} 36. Qc2 {[%clk 0:00:06]} 36... Qxc2 {[%clk 0:00:04.3]} 37.
Rxc2 {[%clk 0:00:07.1]} 37... Kf8 {[%clk 0:00:05.3]} 38. g4 {[%clk 0:00:09]}
38... Ke7 {[%clk 0:00:06.6]} 39. Kg3 {[%clk 0:00:10.9]} 39... Kd6 {[%clk
0:00:08.1]} 40. Kf4 {[%clk 0:00:12.8]} 40... b4 {[%clk 0:00:06.8]} 41. Rd2+
{[%clk 0:00:13.9]} 41... Kc7 {[%clk 0:00:07.9]} 42. Ra2 {[%clk 0:00:14.7]} 42...
Kb6 {[%clk 0:00:08.7]} 43. Ra8 {[%clk 0:00:15.6]} 43... c5 {[%clk 0:00:09.8]}
44. Rf8 {[%clk 0:00:16.4]} 44... Rc6 {[%clk 0:00:08.3]} 45. Rxf7 {[%clk
0:00:17]} 45... c4 {[%clk 0:00:09.8]} 46. Rf8 {[%clk 0:00:18.2]} 46... c3 {[%clk
0:00:11.3]} 47. Rb8+ {[%clk 0:00:19.5]} 47... Kc7 {[%clk 0:00:10.3]} 48. Rxb4
{[%clk 0:00:19.6]} 48... c2 {[%clk 0:00:11.4]} 0-1

[Event "*** Titled Tuesday Blitz"]
[Site "Chess.com"]
[Date "2020.02.04"]
[Round "4"]
[White "r31415"]
[Black "francyIM"]
[Result "0-1"]
[WhiteElo "2376"]
[BlackElo "2599"]
[TimeControl "180+2"]
[EndTime "13:51:26 PST"]
[Termination "francyIM won by resignation"]

1. e4 {[%clk 0:03:01.9]} 1... e5 {[%clk 0:02:57.6]} 2. Nf3 {[%clk 0:03:02.9]}
2... Nc6 {[%clk 0:02:58.3]} 3. Bc4 {[%clk 0:03:04.4]} 3... Bc5 {[%clk
0:02:58.6]} 4. c3 {[%clk 0:03:05.7]} 4... Nf6 {[%clk 0:02:59.5]} 5. d3 {[%clk
0:03:07.3]} 5... a6 {[%clk 0:02:59]} 6. O-O {[%clk 0:03:07.5]} 6... Ba7 {[%clk
0:02:58.6]} 7. Re1 {[%clk 0:03:06]} 7... O-O {[%clk 0:02:57.1]} 8. Nbd2 {[%clk
0:03:00.5]} 8... d6 {[%clk 0:02:56.5]} 9. Bb3 {[%clk 0:03:00.5]} 9... Ng4 {[%clk
0:02:57.1]} 10. Re2 {[%clk 0:03:00.4]} 10... Kh8 {[%clk 0:02:57.5]} 11. h3
{[%clk 0:03:00]} 11... f5 {[%clk 0:02:57.5]} 12. exf5 {[%clk 0:02:57.8]} 12...
Nh6 {[%clk 0:02:54.1]} 13. Nf1 {[%clk 0:02:33.1]} 13... Nxf5 {[%clk 0:02:51.1]}
14. Bg5 {[%clk 0:02:18.4]} 14... Qe8 {[%clk 0:02:49.2]} 15. d4 {[%clk
0:02:10.2]} 15... Qg6 {[%clk 0:02:49]} 16. dxe5 {[%clk 0:02:02.6]} 16... Nxe5
{[%clk 0:02:46.3]} 17. Nxe5 {[%clk 0:01:59.5]} 17... dxe5 {[%clk 0:02:48.2]} 18.
Qd2 {[%clk 0:01:20.7]} 18... h6 {[%clk 0:02:44.6]} 19. Be3 {[%clk 0:01:04.8]}
19... Nh4 {[%clk 0:02:44.1]} 20. Ng3 {[%clk 0:00:20.3]} 20... Bxh3 {[%clk
0:02:44.2]} 21. Qc2 {[%clk 0:00:15.1]} 21... Qxc2 {[%clk 0:02:42.6]} 22. Bxc2
{[%clk 0:00:15.6]} 22... Bxg2 {[%clk 0:02:41]} 23. Bxa7 {[%clk 0:00:16.5]} 23...
Rxa7 {[%clk 0:02:42.8]} 24. Rd1 {[%clk 0:00:04.4]} 24... Bf3 {[%clk 0:02:42.4]}
25. Rd7 {[%clk 0:00:04.9]} 25... Bxe2 {[%clk 0:02:42.1]} 26. Nxe2 {[%clk
0:00:06.8]} 26... c6 {[%clk 0:02:36]} 27. Ng3 {[%clk 0:00:07.4]} 27... Rfa8
{[%clk 0:02:35.3]} 28. Rc7 {[%clk 0:00:05.9]} 28... b5 {[%clk 0:02:35]} 29. Rxc6
{[%clk 0:00:06.4]} 29... Nf3+ {[%clk 0:02:29.7]} 30. Kf1 {[%clk 0:00:05.9]}
30... Rf8 {[%clk 0:02:30]} 31. Ne4 {[%clk 0:00:04.1]} 31... Ng5 {[%clk
0:02:26.1]} 32. Nd6 {[%clk 0:00:04.2]} 32... Nf7 {[%clk 0:02:17]} 33. Ne4 {[%clk
0:00:03.5]} 33... Nd8 {[%clk 0:02:16.6]} 34. Rd6 {[%clk 0:00:03.5]} 34... Nf7
{[%clk 0:02:11.8]} 35. Rg6 {[%clk 0:00:04.3]} 35... Rd8 {[%clk 0:02:09.3]} 36.
Bb3 {[%clk 0:00:04.3]} 36... Kh7 {[%clk 0:02:09.3]} 37. Rg3 {[%clk 0:00:04.6]}
37... Nd6 {[%clk 0:02:08.3]} 38. Nc5 {[%clk 0:00:05.6]} 38... Re7 {[%clk
0:02:05.2]} 39. Bc2+ {[%clk 0:00:06.9]} 39... e4 {[%clk 0:02:06.1]} 40. Nxa6
{[%clk 0:00:07.7]} 40... Nf5 {[%clk 0:02:05]} 41. Rh3 {[%clk 0:00:07.3]} 41...
Rd2 {[%clk 0:02:05.3]} 42. Nb4 {[%clk 0:00:07]} 42... g6 {[%clk 0:02:06.2]} 43.
Ke1 {[%clk 0:00:07.4]} 43... e3 {[%clk 0:02:04.6]} 44. fxe3 {[%clk 0:00:07.3]}
44... Rg2 {[%clk 0:02:03.9]} 45. e4 {[%clk 0:00:04]} 45... Ng3 {[%clk
0:02:02.3]} 46. Nd5 {[%clk 0:00:03]} 46... Rf7 {[%clk 0:01:49.5]} 47. Ne3 {[%clk
0:00:02.4]} 47... Re2+ {[%clk 0:01:49.7]} 48. Kd1 {[%clk 0:00:03.2]} 48... Rxe3
{[%clk 0:01:51.6]} 49. e5 {[%clk 0:00:04.7]} 49... Re7 {[%clk 0:01:45.1]} 50. a4
{[%clk 0:00:03.6]} 50... bxa4 {[%clk 0:01:44.8]} 51. Bxa4 {[%clk 0:00:05.5]}
51... R7xe5 {[%clk 0:01:45.6]} 52. Rh2 {[%clk 0:00:04.7]} 52... Re1+ {[%clk
0:01:44.4]} 53. Kc2 {[%clk 0:00:04.9]} 53... Nf1 {[%clk 0:01:45.1]} 54. Rf2
{[%clk 0:00:04.7]} 54... Ne3+ {[%clk 0:01:46.1]} 55. Kd3 {[%clk 0:00:04.8]}
55... Kg7 {[%clk 0:01:43.4]} 56. b4 {[%clk 0:00:04.5]} 56... Nd5 {[%clk
0:01:42.1]} 57. Kc4 {[%clk 0:00:04.4]} 57... R1e4+ {[%clk 0:01:41.2]} 58. Kb3
{[%clk 0:00:04.3]} 58... Re3 {[%clk 0:01:42]} 59. Rc2 {[%clk 0:00:05.8]} 59...
R5e4 {[%clk 0:01:42.7]} 60. Kb2 {[%clk 0:00:04.7]} 60... Nxb4 {[%clk 0:01:41.6]}
0-1

[Event "*** Titled Tuesday Blitz"]
[Site "Chess.com"]
[Date "2020.02.04"]
[Round "4"]
[White "HouseOfDurin"]
[Black "Sjakkerntobi"]
[Result "1-0"]
[WhiteElo "2099"]
[BlackElo "2249"]
[TimeControl "180+2"]
[EndTime "13:51:27 PST"]
[Termination "HouseOfDurin won by resignation"]

1. d4 {[%clk 0:03:01.9]} 1... Nf6 {[%clk 0:03:00.6]} 2. Bg5 {[%clk 0:03:03.1]}
2... d5 {[%clk 0:02:59.9]} 3. Bxf6 {[%clk 0:03:04]} 3... exf6 {[%clk 0:03:01.8]}
4. e3 {[%clk 0:03:05.2]} 4... c6 {[%clk 0:03:03.1]} 5. c4 {[%clk 0:03:06.6]}
5... Bd6 {[%clk 0:03:04.3]} 6. cxd5 {[%clk 0:03:07.2]} 6... cxd5 {[%clk
0:03:05.6]} 7. Nc3 {[%clk 0:03:08.8]} 7... Be6 {[%clk 0:03:06.3]} 8. g3 {[%clk
0:03:10]} 8... O-O {[%clk 0:03:06.8]} 9. Bg2 {[%clk 0:03:11.2]} 9... Be7 {[%clk
0:03:07.5]} 10. Nge2 {[%clk 0:03:12.6]} 10... Nc6 {[%clk 0:03:08.5]} 11. O-O
{[%clk 0:03:14.1]} 11... a6 {[%clk 0:03:08.3]} 12. a3 {[%clk 0:03:12.6]} 12...
Rc8 {[%clk 0:03:09.6]} 13. Nf4 {[%clk 0:03:12.8]} 13... Qd6 {[%clk 0:02:58.5]}
14. Nfxd5 {[%clk 0:03:12]} 14... Rfd8 {[%clk 0:02:57.7]} 15. Rc1 {[%clk
0:02:50.7]} 15... Bf8 {[%clk 0:02:41.4]} 16. Nb6 {[%clk 0:02:23.4]} 16... Rb8
{[%clk 0:02:18.9]} 17. d5 {[%clk 0:02:24.2]} 17... Ne5 {[%clk 0:02:16.2]} 18.
dxe6 {[%clk 0:01:38.3]} 18... Qxb6 {[%clk 0:02:15.9]} 19. exf7+ {[%clk
0:01:38.9]} 19... Nxf7 {[%clk 0:02:17.8]} 20. Qc2 {[%clk 0:01:11.9]} 20... Rbc8
{[%clk 0:02:09.7]} 21. Rfd1 {[%clk 0:01:11.6]} 21... Rxd1+ {[%clk 0:02:09.6]}
22. Rxd1 {[%clk 0:01:13.5]} 22... Ne5 {[%clk 0:02:08.1]} 23. Qd2 {[%clk
0:00:58.3]} 23... Kh8 {[%clk 0:01:57.8]} 24. Nd5 {[%clk 0:00:49]} 24... Qc5
{[%clk 0:01:44.6]} 25. b4 {[%clk 0:00:48.9]} 25... Qc2 {[%clk 0:01:40.3]} 26.
Qxc2 {[%clk 0:00:34.7]} 26... Rxc2 {[%clk 0:01:42.2]} 27. Nb6 {[%clk 0:00:21.8]}
27... Nc6 {[%clk 0:01:19.4]} 28. Bxc6 {[%clk 0:00:20.4]} 28... Rxc6 {[%clk
0:01:21.3]} 29. Rd8 {[%clk 0:00:19.5]} 29... Kg8 {[%clk 0:01:22.2]} 30. Nd7
{[%clk 0:00:20.4]} 30... Kf7 {[%clk 0:01:23.7]} 31. Nxf8 {[%clk 0:00:19.3]}
31... Ke7 {[%clk 0:01:23]} 32. Rb8 {[%clk 0:00:19.3]} 32... b6 {[%clk
0:01:19.9]} 33. Nxh7 {[%clk 0:00:19.1]} 33... Rc3 {[%clk 0:01:15.4]} 34. Rxb6
{[%clk 0:00:19]} 34... Rxa3 {[%clk 0:01:16.8]} 35. Rb7+ {[%clk 0:00:20.2]} 35...
Ke6 {[%clk 0:01:17.1]} 36. Rxg7 {[%clk 0:00:20.9]} 36... Rb3 {[%clk 0:01:18.7]}
37. Rb7 {[%clk 0:00:21.2]} 37... a5 {[%clk 0:01:19.4]} 38. Rb6+ {[%clk 0:00:22]}
38... Kf7 {[%clk 0:01:17.6]} 39. bxa5 {[%clk 0:00:23]} 39... Ra3 {[%clk
0:01:17.3]} 40. Rxf6+ {[%clk 0:00:22.7]} 40... Kg7 {[%clk 0:01:17.9]} 41. Ra6
{[%clk 0:00:22.6]} 41... Kxh7 {[%clk 0:01:19]} 42. Ra8 {[%clk 0:00:22.9]} 42...
Kg7 {[%clk 0:01:20.2]} 43. Kg2 {[%clk 0:00:24.4]} 43... Ra2 {[%clk 0:01:21.4]}
44. a6 {[%clk 0:00:25.9]} 44... Ra1 {[%clk 0:01:22.6]} 45. a7 {[%clk 0:00:27.3]}
45... Ra2 {[%clk 0:01:23.7]} 46. h4 {[%clk 0:00:28.5]} 46... Ra1 {[%clk
0:01:24.8]} 47. g4 {[%clk 0:00:29.7]} 47... Ra2 {[%clk 0:01:26.3]} 48. Kg3
{[%clk 0:00:30.4]} 48... Ra3 {[%clk 0:01:27.6]} 49. h5 {[%clk 0:00:30.9]} 49...
Ra2 {[%clk 0:01:28.9]} 50. g5 {[%clk 0:00:32]} 50... Ra6 {[%clk 0:01:28.7]} 51.
f4 {[%clk 0:00:31.2]} 51... Ra3 {[%clk 0:01:29.2]} 52. Kg4 {[%clk 0:00:32.3]}
52... Ra1 {[%clk 0:01:28.3]} 53. e4 {[%clk 0:00:33.4]} 53... Rg1+ {[%clk
0:01:29.2]} 54. Kf5 {[%clk 0:00:34.5]} 54... Ra1 {[%clk 0:01:31.1]} 55. e5
{[%clk 0:00:33.5]} 55... Kh7 {[%clk 0:01:28.2]} 56. e6 {[%clk 0:00:31.6]} 56...
Ra5+ {[%clk 0:01:28]} 57. Kg4 {[%clk 0:00:32.8]} 57... Ra1 {[%clk 0:01:25.2]}
58. Rd8 {[%clk 0:00:33.1]} 58... Rg1+ {[%clk 0:01:18.3]} 59. Kf5 {[%clk
0:00:33.7]} 59... Ra1 {[%clk 0:01:16.5]} 60. a8=Q {[%clk 0:00:31.6]} 60... Rxa8
{[%clk 0:01:17]} 61. Rxa8 {[%clk 0:00:33.5]} 61... Kg7 {[%clk 0:01:18.9]} 62.
Ra7+ {[%clk 0:00:34.5]} 62... Kg8 {[%clk 0:01:20.7]} 63. Rf7 {[%clk 0:00:34]}
63... Kh8 {[%clk 0:01:21.7]} 64. Kf6 {[%clk 0:00:35.3]} 64... Kg8 {[%clk
0:01:23]} 65. e7 {[%clk 0:00:36.9]} 1-0

[Event "*** Titled Tuesday Blitz"]
[Site "Chess.com"]
[Date "2020.02.04"]
[Round "4"]
[White "Heineccius"]
[Black "kinga2008"]
[Result "1-0"]
[WhiteElo "2656"]
[BlackElo "1984"]
[TimeControl "180+2"]
[EndTime "13:51:33 PST"]
[Termination "Heineccius won on time"]

1. d4 {[%clk 0:03:01.9]} 1... g6 {[%clk 0:02:53.7]} 2. Nf3 {[%clk 0:03:02.3]}
2... Bg7 {[%clk 0:02:54.3]} 3. c4 {[%clk 0:03:03.3]} 3... d6 {[%clk 0:02:54.7]}
4. Nc3 {[%clk 0:03:04.6]} 4... Nf6 {[%clk 0:02:49.1]} 5. e4 {[%clk 0:03:04]}
5... O-O {[%clk 0:02:48.1]} 6. h3 {[%clk 0:03:05.1]} 6... e5 {[%clk 0:02:49]} 7.
d5 {[%clk 0:03:05.3]} 7... Ne8 {[%clk 0:02:48]} 8. g4 {[%clk 0:03:05.1]} 8... c5
{[%clk 0:02:36.8]} 9. Be2 {[%clk 0:03:01.7]} 9... h6 {[%clk 0:02:35.1]} 10. Rg1
{[%clk 0:02:54.1]} 10... Nd7 {[%clk 0:02:34.4]} 11. h4 {[%clk 0:02:53.3]} 11...
a6 {[%clk 0:02:27.3]} 12. a4 {[%clk 0:02:52.1]} 12... Qa5 {[%clk 0:02:14.4]} 13.
Bd2 {[%clk 0:02:50.8]} 13... Qb6 {[%clk 0:02:14.6]} 14. a5 {[%clk 0:02:47]}
14... Qd8 {[%clk 0:02:03]} 15. Qc1 {[%clk 0:02:47.6]} 15... Kh7 {[%clk 0:02:03]}
16. Bd3 {[%clk 0:02:39.8]} 16... Rh8 {[%clk 0:02:02.8]} 17. Ne2 {[%clk 0:02:20]}
17... Kg8 {[%clk 0:01:59.4]} 18. Ng3 {[%clk 0:02:14.8]} 18... Qf6 {[%clk
0:01:56.8]} 19. Be2 {[%clk 0:02:11]} 19... Qe7 {[%clk 0:01:55]} 20. Ra3 {[%clk
0:02:00]} 20... Nf8 {[%clk 0:01:39.2]} 21. g5 {[%clk 0:01:52.2]} 21... h5 {[%clk
0:01:39.2]} 22. Rb3 {[%clk 0:01:45.3]} 22... Rb8 {[%clk 0:01:30.5]} 23. Nh2
{[%clk 0:01:42.9]} 23... Nd7 {[%clk 0:01:25.7]} 24. Nhf1 {[%clk 0:01:43.3]}
24... b6 {[%clk 0:01:16.2]} 25. axb6 {[%clk 0:01:41.7]} 25... Rxb6 {[%clk
0:01:12.9]} 26. Rxb6 {[%clk 0:01:42.1]} 26... Nxb6 {[%clk 0:01:13.6]} 27. Ne3
{[%clk 0:01:43.7]} 27... Qd7 {[%clk 0:01:10]} 28. b3 {[%clk 0:01:41.9]} 28...
Bf8 {[%clk 0:01:03.4]} 29. Qa3 {[%clk 0:01:41]} 29... Ng7 {[%clk 0:01:01.4]} 30.
Kd1 {[%clk 0:01:41.3]} 30... Be7 {[%clk 0:01:01.8]} 31. Kc2 {[%clk 0:01:41.4]}
31... Bd8 {[%clk 0:01:01.9]} 32. Ba5 {[%clk 0:01:36.9]} 32... Qc7 {[%clk
0:00:50.3]} 33. Rb1 {[%clk 0:01:30.1]} 33... Qd7 {[%clk 0:00:36.4]} 34. b4
{[%clk 0:01:27.5]} 34... cxb4 {[%clk 0:00:34.7]} 35. Qxb4 {[%clk 0:01:26.8]}
35... Na8 {[%clk 0:00:26.3]} 36. Bxd8 {[%clk 0:01:20.7]} 36... Qxd8 {[%clk
0:00:26.3]} 37. c5 {[%clk 0:01:19.8]} 37... dxc5 {[%clk 0:00:20.1]} 38. Qxc5
{[%clk 0:01:20.2]} 38... Kh7 {[%clk 0:00:19.3]} 39. Rb8 {[%clk 0:01:15.6]} 39...
Qc7 {[%clk 0:00:17.7]} 40. Qxc7 {[%clk 0:01:12.2]} 40... Nxc7 {[%clk 0:00:19.6]}
41. Nc4 {[%clk 0:01:09.6]} 41... Nb5 {[%clk 0:00:08.8]} 42. Nxe5 {[%clk
0:00:54.3]} 42... Nd4+ {[%clk 0:00:09.3]} 43. Kd3 {[%clk 0:00:53.8]} 43... Nxe2
{[%clk 0:00:09.7]} 44. Nxe2 {[%clk 0:00:55.2]} 44... a5 {[%clk 0:00:04.9]} 45.
Kd4 {[%clk 0:00:49.2]} 45... a4 {[%clk 0:00:04.9]} 46. Ra8 {[%clk 0:00:47.6]}
1-0